{"text_format":"1","workbook":"xlsx","n_sheets":2,"sheets":["Fall","Background"],"not_rendered":{"charts":0,"images":2,"macros":1,"external_links":0,"defined_names":0,"comments":0,"pivot_tables":0},"unopened":[],"bounds":{"document_bytes":16777216,"sheet_cells":100000,"rows_first":2000,"rows_last":500,"rows_between":2000,"halvings":0,"cell_chars":16384,"cell_head_chars":4096},"cells_cut":0,"cells_raw":0,"read":"whole","date_system":"1900"}

{"sheet":"Fall","index":0,"n_rows":31,"n_cols":24,"rows_kept":31,"cut":false,"hidden":false,"merged":[[0,0,0,14],[1,0,1,6],[1,8,1,11],[1,13,1,14],[2,0,2,6],[2,8,2,11],[2,13,2,14],[15,1,15,13],[4,0,4,6],[4,8,4,11],[4,13,4,14],[5,0,5,6],[5,8,5,11],[5,13,5,14],[7,1,7,14],[12,0,12,5],[12,8,12,13],[13,0,13,5],[13,8,13,13],[16,1,16,13],[17,0,17,14],[18,0,18,14],[19,1,19,2],[19,4,19,6],[19,8,19,10],[19,12,19,14],[20,4,20,5],[20,6,20,10],[21,8,21,9],[22,5,22,6],[22,7,22,10],[22,11,22,12],[25,1,25,10],[25,11,25,13],[26,1,26,10],[26,11,26,13],[0,16,0,30],[1,16,1,30],[3,17,4,30],[6,17,7,30],[9,17,10,30],[12,17,12,18],[12,19,12,20],[12,21,12,22],[12,23,12,24],[13,17,13,18],[13,19,13,20],[13,21,13,22],[13,23,13,24],[14,17,14,18],[14,19,14,20],[14,21,14,22],[14,23,14,24],[15,17,15,18],[15,19,15,20],[15,21,15,22],[15,23,15,24],[18,17,18,18],[18,19,18,20],[18,21,18,22],[18,23,18,24],[16,17,16,18],[16,19,16,20],[16,21,16,22],[16,23,16,24],[17,17,17,18],[17,19,17,20],[17,21,17,22],[17,23,17,24],[20,17,21,30],[22,17,22,18],[22,19,22,20],[22,21,22,22],[22,23,22,24],[23,17,23,18],[23,19,23,20],[23,21,23,22],[23,23,23,24],[24,17,24,18],[24,19,24,20],[24,21,24,22],[24,23,24,24],[30,0,30,15],[25,17,25,18],[25,19,25,20],[25,21,25,22],[25,23,25,24],[30,16,30,31]]}
["Elementary Sports Coordinator Paysheet",null,null,null,null,null,null,null,null,null,null,null,null,null,null,null,"Elementary Sports Coordinators Pay Sheet"]
["Name of Employee",null,null,null,null,null,null,null,"Employee ID#",null,null,null,null,"Phone Number",null,null,"2022-2023 Academic Year"]
[]
[null,null,null,null,null,null,null,null,null,null,null,null,null,null,null,null,"1.) ","Required Hiring Paperwork - All paid Sports Coordinators are required to complete an online application and submit the required hiring paperwork to the Youth Sports Office at least three (3) weeks prior to the start of the season."]
["Email Address",null,null,null,null,null,null,null,"School",null,null,null,null,"Season"]
[null,null,null,null,null,null,null,null,null,null,null,null,null,"WINTER 2022-23"]
[null,null,null,null,null,null,null,null,null,null,null,null,null,null,null,null,"2.)","Signatures - The Sports Coordinator pay sheet must be signed off by the Sports Coordinator and the Principal. If a signature is missing, the pay sheet will be returned to the school and pay will be delayed. Digitable signatures are acceptable. "]
["# of Teams","Select Number of Teams Here"]
["SUN\n02/12","MON\n02/13","TUE\n02/14","WED\n02/15","THU\n02/16","FRI\n02/17","SAT\n02/18","SUN \n02/19","MON 02/20","TUE\n02/21","WED\n02/22","THU\n02/23","FRI\n02/24","SAT\n02/25","TOTAL"]
[{"$f":"0","v":0},{"$f":"IF($B$8=Background!A1,0,IF(Fall!$B$8=Background!A2,0,IF(Fall!$B$8=Background!A3,1.25,IF(Fall!$B$8=Background!A4,3.75,IF(Fall!$B$8=Background!A5,1.25,IF(Fall!$B$8=Background!A6,7.5,0))))))","v":0},{"$f":"IF($B$8=Background!A1,3,IF(Fall!$B$8=Background!A2,4.5,IF(Fall!$B$8=Background!A3,5,IF(Fall!$B$8=Background!A4,6,IF(Fall!$B$8=Background!A5,8,IF(Fall!$B$8=Background!A6,7.5,0))))))","v":0},{"$f":"IF($B$8=Background!A1,3,IF(Fall!$B$8=Background!A2,4.5,IF(Fall!$B$8=Background!A3,5,IF(Fall!$B$8=Background!A4,6,IF(Fall!$B$8=Background!A5,8,IF(Fall!$B$8=Background!A6,7.5,0))))))","v":0},{"$f":"IF($B$8=Background!A1,3,IF(Fall!$B$8=Background!A2,4.5,IF(Fall!$B$8=Background!A3,5,IF(Fall!$B$8=Background!A4,6,IF(Fall!$B$8=Background!A5,8,IF(Fall!$B$8=Background!A6,7.5,0))))))","v":0},{"$f":"IF($B$8=Background!A1,3,IF(Fall!$B$8=Background!A2,4.5,IF(Fall!$B$8=Background!A3,5,IF(Fall!$B$8=Background!A4,6,IF(Fall!$B$8=Background!A5,8,IF(Fall!$B$8=Background!A6,7.5,0))))))","v":0},{"$f":"IF($B$8=Background!A1,3,IF(Fall!$B$8=Background!A2,4.5,IF(Fall!$B$8=Background!A3,5,IF(Fall!$B$8=Background!A4,6,IF(Fall!$B$8=Background!A5,8,IF(Fall!$B$8=Background!A6,7.5,0))))))","v":0},{"$f":"0","v":0},{"$f":"IF($B$8=Background!A1,0,IF(Fall!$B$8=Background!A2,0,IF(Fall!$B$8=Background!A3,1.25,IF(Fall!$B$8=Background!A4,3.75,IF(Fall!$B$8=Background!A5,1.25,IF(Fall!$B$8=Background!A6,7.5,0))))))","v":0},{"$f":"IF($B$8=Background!A1,3,IF(Fall!$B$8=Background!A2,4.5,IF(Fall!$B$8=Background!A3,5,IF(Fall!$B$8=Background!A4,6,IF(Fall!$B$8=Background!A5,8,IF(Fall!$B$8=Background!A6,7.5,0))))))","v":0},{"$f":"IF($B$8=Background!A1,3,IF(Fall!$B$8=Background!A2,4.5,IF(Fall!$B$8=Background!A3,5,IF(Fall!$B$8=Background!A4,6,IF(Fall!$B$8=Background!A5,8,IF(Fall!$B$8=Background!A6,7.5,0))))))","v":0},{"$f":"IF($B$8=Background!A1,3,IF(Fall!$B$8=Background!A2,4.5,IF(Fall!$B$8=Background!A3,5,IF(Fall!$B$8=Background!A4,6,IF(Fall!$B$8=Background!A5,8,IF(Fall!$B$8=Background!A6,7.5,0))))))","v":0},{"$f":"IF($B$8=Background!A1,3,IF(Fall!$B$8=Background!A2,4.5,IF(Fall!$B$8=Background!A3,5,IF(Fall!$B$8=Background!A4,6,IF(Fall!$B$8=Background!A5,8,IF(Fall!$B$8=Background!A6,7.5,0))))))","v":0},{"$f":"IF($B$8=Background!A1,3,IF(Fall!$B$8=Background!A2,4.5,IF(Fall!$B$8=Background!A3,5,IF(Fall!$B$8=Background!A4,6,IF(Fall!$B$8=Background!A5,8,IF(Fall!$B$8=Background!A6,7.5,0))))))","v":0},{"$f":"SUM(A10:N10)","v":0},null,"3.)","Pay Rates - Pay rates for Elementary Sports Coordinators  will coincide with the number of teams your school supports per season. Sports Coordinators will not be paid for teams (including special event teams) that do not complete the current season. The form has built in formulas that can't be changed. Do not alter pay sheet form by adding boxes, changing dates, or number of hours. "]
[]
[]
[null,null,null,null,null,null,null,null,null,null,null,null,null,null,null,null,null,"TOTAL # OF TEAMS THIS SEASON",null,"TOTAL NUMBER OF PAID HOURS",null,"RATE PER HOUR",null,"WINTER SPORTS              15 WEEKS"]
["SPORTS COORDINATOR SIGNATURE",null,null,null,null,null,"DATE",null,"PRINCIPAL SIGNATURE",null,null,null,null,null,"DATE",null,null,1,null,30,null,17,null,{"$f":"V14*T14","v":510}]
[null,null,null,null,null,null,null,null,null,null,null,null,null,null,null,null,null,2,null,45,null,17,null,{"$f":"V15*T15","v":765}]
[null,null,null,null,null,null,null,null,null,null,null,null,null,null,null,null,null,3,null,52.5,null,17,null,892.5]
[null,"SUBMIT FOR WINTER 2022-23 SPORTS SEASON ONLY",null,null,null,null,null,null,null,null,null,null,null,null,null,null,null,4,null,67.5,null,17,null,1147.5]
["IMPORTANT, Must have Sports Coordinator and/or Principal signature, before sending to the Youth Sports Office for approval. Missing information",null,null,null,null,null,null,null,null,null,null,null,null,null,null,null,null,5,null,82.5,null,17,null,1402.5]
["will delay payment, such as, but not limited to, missing parts to the application and background check.  Rejection of applicant voids this pay sheet.",null,null,null,null,null,null,null,null,null,null,null,null,null,null,null,null,"6+",null,90,null,17,null,{"$f":"V19*T19","v":1530}]
[null,"FOR OFFICE USE ONLY",null,null,"FOR OFFICE USE ONLY",null,null,null,"FOR OFFICE USE ONLY",null,null,null,"FOR OFFICE USE ONLY"]
[null,"RL: _____________",null,null,"Date Range:",null,null,null,null,null,null,null,null,null,null,null,"4.)","Sports Coordinator Pay Sheet Deadlines - See the chart below for due date and payment dates. Pay sheets submitted after the deadline will be processed the following pay period. "]
[null,null,null,null,null,null,null,null,"Circle Season"]
[null,"RYS-0-0-PRC-",null,"-EWCH5401",null,"Fall",null,"Winter",null,null,null,"Spring",null,null,null,null,null,"SEASON",null,"PAY PERIOD",null,"PAY SHEET DUE DATE",null,"TENTATIVE PAY DATE"]
[null,null,null,null,null,null,null,null,null,null,null,null,null,null,null,null,null,"FALL SPORTS",null,1,null,"2022-10-26",null,"2022-11-11"]
[null,null,null,null,null,null,null,null,null,null,null,null,null,null,null,null,null,"WINTER SPORTS",null,2,null,"2023-03-01",null,"2023-03-17"]
[null,null,null,null,null,null,null,null,null,null,null,null,null,null,null,null,null,"SPRING SPORTS",null,3,null,"2023-05-24",null,"2023-06-09"]
[null,"YOUTH SPORTS SUPERVISOR SIGNATURE",null,null,null,null,null,null,null,null,null,"DATE"]
[]
[]
[]
["All Pay Sheets must be submitted online at http://tinyurl.com/Paysheet-YS",null,null,null,null,null,null,null,null,null,null,null,null,null,null,null,"All Pay Sheets must be submitted online at http://tinyurl.com/Paysheet-YS"]

{"sheet":"Background","index":1,"n_rows":7,"n_cols":1,"rows_kept":7,"cut":false,"hidden":true,"merged":[]}
["1 Team"]
["2 Teams"]
["3 Teams"]
["4 Teams"]
["5 Teams"]
["6+ Teams"]
["Select Number of Teams Here"]